bitfinex-derivatives/quotes_SOLF0:USTF0_20250413
["timestamp","ask_amount","ask_price","bid_price","bid_amount"]
[1744540663590,0.05061264,130.76,130.75,7.6503]
[1744540663891,30.657,130.82,130.73,28.71803885]
[1744540664091,7.6477,130.8,130.77,7.6486]
[1744540665092,7.70218872,130.8,130.77,7.70229794]
[1744540665294,7.648,130.79,130.77,0.05369794]
[1744540665496,0.05448872,130.8,130.77,0.05369794]
[1744540665795,7.70208872,130.8,130.77,7.70269794]
[1744540665997,0.05448872,130.8,130.77,0.05369794]
[1744540666698,7.6482,130.79,130.77,0.05369794]
[1744540666998,0.05448872,130.8,130.77,0.05369794]
[1744540667199,28.69448872,130.8,130.77,0.05369794]
[1744540667394,7.6485,130.78,130.77,0.05369794]
[1744540667697,28.69448872,130.8,130.7,32.6407]
[1744540667893,7.6512,130.74,130.7,28.64]
[1744540668496,2.079,130.77,130.7,28.64]
[1744540668695,2.079,130.77,130.72,7.6519]
[1744540668896,0.05783083,130.75,130.72,0.05004186]
[1744540671102,0.05783083,130.75,130.72,7.70174186]
[1744540671500,0.05783083,130.75,130.72,0.05004186]
[1744540671902,0.05783083,130.75,130.73,7.6514]
[1744540672199,0.05783083,130.75,130.72,0.05004186]
[1744540673199,0.05783083,130.75,130.72,7.70174186]
[1744540674599,7.70813083,130.75,130.72,7.70174186]
[1744540674901,0.05783083,130.75,130.72,0.05004186]
[1744540675090,28.69783083,130.75,130.72,0.05004186]
[1744540675289,7.6514,130.73,130.72,0.05004186]
[1744540678405,28.69783083,130.75,130.72,0.05004186]
[1744540679103,7.6509,130.74,130.72,7.70174186]
[1744540679406,7.6509,130.74,130.72,0.05004186]
[1744540680005,36.34843083,130.75,130.72,0.05004186]
[1744540680505,28.69783083,130.75,130.73,7.6514]
[1744540680705,0.05783083,130.75,130.73,7.6514]
[1744540681302,0.05783083,130.75,130.72,0.05004186]
[1744540681700,100.51025367,130.8,130.72,0.05004186]
[1744540681905,7.648,130.79,130.76,7.6494]
[1744540682403,7.648,130.79,130.74,28.66]
[1744540683008,0.05830533,130.78,130.77,7.6491]
[1744540684005,0.05830533,130.78,130.75,0.05085352]
[1744540687409,0.05830533,130.78,130.77,7.6491]
[1744540687610,0.05830533,130.78,130.77,36.2891]
[1744540688208,36.2859,130.83,130.8,7.6473]
[1744540688807,28.64,130.83,130.8,7.6473]
[1744540689211,7.6453,130.84,130.81,7.6465]
[1744540689412,0.04961908,130.83,130.8,0.05844346]
[1744540689912,7.6468,130.81,130.8,0.05844346]
[1744540691807,7.6488,130.78,130.74,36.2903]
[1744540692011,7.6488,130.78,130.74,28.64]
[1744540692907,7.7051588,130.77,130.75,0.05366134]
[1744540693714,0.0558588,130.77,130.75,0.05366134]
[1744540694512,0.0558588,130.77,130.75,7.70366134]
[1744540694715,0.0558588,130.77,130.75,0.05366134]
[1744540695215,0.0558588,130.77,130.76,28.64]
[1744540695410,0.0558588,130.77,130.76,36.2897]
[1744540696114,28.64,130.83,130.79,7.6477]
[1744540696613,7.6463,130.82,130.79,7.6477]
[1744540697417,7.69530041,130.82,130.79,7.70604096]
[1744540697610,0.04900041,130.82,130.8,7.6473]
[1744540701414,0.04900041,130.82,130.79,0.05834096]
[1744540703921,7.69550041,130.82,130.79,0.05834096]
[1744540704422,0.04900041,130.82,130.79,0.05834096]
[1744540705124,0.04900041,130.82,130.8,7.6468]
[1744540706423,0.04900041,130.82,130.79,7.70594096]
[1744540706822,7.69530041,130.82,130.79,7.70594096]
[1744540707123,0.04900041,130.82,130.79,7.70594096]
[1744540707525,0.04900041,130.82,130.8,7.6472]
[1744540709224,0.04900041,130.82,130.79,7.70604096]
[1744540710024,0.04900041,130.82,130.8,7.6473]
[1744540711423,0.04900041,130.82,130.79,0.05834096]
[1744540711821,7.69550041,130.82,130.79,7.70624096]
[1744540712020,7.69550041,130.82,130.79,0.05834096]
[1744540713228,0.04900041,130.82,130.79,0.05834096]
[1744540713821,0.04900041,130.82,130.8,7.647]
[1744540715830,0.04900041,130.82,130.79,0.05834096]
[1744540716822,0.04900041,130.82,130.8,7.6469]
[1744540723529,0.04900041,130.82,130.81,7.6468]
[1744540725233,0.04900041,130.82,130.8,7.6471]
[1744540727035,0.04900041,130.82,130.81,7.6468]
[1744540728836,79.49305367,130.88,130.8,28.62]
[1744540729032,71.85025367,130.88,130.8,32.7711]
[1744540729433,7.6439,130.86,130.83,7.6453]
[1744540729738,71.85025367,130.88,130.8,32.7711]
[1744540729937,0.0323034,130.86,130.83,0.05507355]
[1744540730140,0.0323034,130.86,130.84,7.6449]
[1744540730640,0.0323034,130.86,130.83,0.05507355]
[1744540731741,0.0323034,130.86,130.84,7.6445]
[1744540733235,7.6762034,130.86,130.83,7.70057355]
[1744540733542,0.0323034,130.86,130.83,7.70057355]
[1744540734942,0.0323034,130.86,130.84,7.6449]
[1744540735141,0.0323034,130.86,130.83,0.05507355]
[1744540736145,7.6764034,130.86,130.83,7.70027355]
[1744540736659,0.0323034,130.86,130.83,7.70027355]
[1744540737144,0.0323034,130.86,130.83,0.05507355]
[1744540737443,0.0323034,130.86,130.83,28.67507355]
[1744540737741,0.0323034,130.86,130.84,7.6447]
[1744540742044,0.0323034,130.86,130.83,36.32047355]
[1744540742345,0.0323034,130.86,130.83,28.67507355]
[1744540743142,0.0323034,130.86,130.84,7.6446]
[1744540748942,71.85025367,130.93,130.83,28.67507355]
[1744540749137,71.85025367,130.93,130.84,2.1205]
[1744540749336,71.85025367,130.93,130.86,7.6436]
[1744540749545,71.85025367,130.93,130.83,28.62]
[1744540749743,28.62,130.92,130.83,28.62]
[1744540750046,100.47025367,130.92,130.86,0.05550184]
[1744540751549,7.643,130.88,130.86,0.05550184]
[1744540752549,7.6433,130.87,130.86,0.05550184]
[1744540753248,6.0592,130.88,130.79,2.1205]
[1744540753447,6.0592,130.88,130.72,15.304]
[1744540753448,611.5192,130.88,130.75,28.62]
[1744540753647,611.5192,130.88,130.76,10.73241274]
[1744540753848,7.6474,130.8,130.77,15.16750436]
[1744540754153,611.5192,130.88,130.75,28.62]
[1744540754154,28.62,130.82,130.78,7.51850436]
[1744540754347,7.6469,130.81,130.77,7.6487]
[1744540754549,7.6469,130.81,130.79,0.04863755]
[1744540754749,0.05292911,130.8,130.79,0.04863755]
[1744540756549,7.70032911,130.8,130.79,0.04863755]
[1744540758053,0.05292911,130.8,130.79,0.04863755]
[1744540758653,0.05292911,130.8,130.79,7.69653755]
[1744540759944,0.05292911,130.8,130.79,0.04863755]
[1744540766762,7.70032911,130.8,130.79,0.04863755]
[1744540768461,7.70032911,130.8,130.72,363.34663305]
[1744540768462,0.05292911,130.8,130.74,28.62]
[1744540768661,4.0837,130.81,130.74,28.62]
[1744540768860,4.0837,130.81,130.77,7.6487]
[1744540769161,7.6476,130.8,130.77,7.6487]
[1744540769562,11.7308,130.81,130.78,7.6485]
[1744540769764,0.05713362,130.8,130.78,7.6485]
[1744540770458,0.05713362,130.8,130.77,0.05301557]
[1744540770459,0.05713362,130.8,130.79,7.6479]
[1744540775868,0.05713362,130.8,130.78,7.6483]
[1744540777669,7.70453362,130.8,130.77,7.70191557]
[1744540781172,0.05713362,130.8,130.77,0.05301557]
[1744540781772,7.6479,130.79,130.77,0.05301557]
[1744540783175,7.6485,130.78,130.77,0.05301557]
[1744540783873,7.6482,130.79,130.77,0.05301557]
[1744540784173,7.6482,130.79,130.77,7.70191557]
[1744540788882,7.70473362,130.8,130.77,7.70191557]
[1744540792879,7.648,130.79,130.77,0.05301557]
[1744540793879,7.70483362,130.8,130.77,7.70211557]
[1744540797383,7.70483362,130.8,130.78,3.22807435]
[1744540797579,7.70483362,130.8,130.77,7.70211557]
[1744540797779,7.70483362,130.8,130.78,3.22809025]
[1744540797979,7.70483362,130.8,130.77,7.70211557]
[1744540798179,7.70483362,130.8,130.78,3.22809025]
[1744540798382,7.70483362,130.8,130.77,7.70211557]
[1744540798581,7.70483362,130.8,130.78,3.2281071]
[1744540798781,7.70483362,130.8,130.77,7.70211557]
[1744540798984,7.70483362,130.8,130.78,3.22833449]
[1744540799183,7.70483362,130.8,130.77,7.70211557]
[1744540799383,7.70483362,130.8,130.78,3.22833449]
[1744540799585,0.05713362,130.8,130.79,3.22802573]
[1744540800087,0.05713362,130.8,130.79,10.87592573]
[1744540801088,71.85025367,130.84,130.79,31.84802573]
[1744540801289,71.85025367,130.84,130.8,3.22802573]
[1744540801588,71.85025367,130.84,130.81,10.87452573]
[1744540801783,71.85025367,130.84,130.76,28.62]
[1744540801986,32.6598,130.83,130.77,3.22683824]
[1744540802186,7.6476,130.8,130.79,0.05395979]
[1744540803682,7.6491,130.77,130.73,1.955]
[1744540803883,7.6491,130.77,130.74,3.22741877]
[1744540804083,7.6491,130.77,130.75,3.22741877]
[1744540804287,7.65,130.76,130.73,28.62]
[1744540804485,7.65,130.76,130.74,3.22752108]
[1744540804782,7.6494,130.77,130.74,0.04964065]
[1744540805086,0.05749075,130.76,130.74,0.04964065]
[1744540805289,0.05749075,130.76,130.74,7.70044065]
[1744540807089,0.05749075,130.76,130.75,7.6503]
[1744540807689,7.6471,130.81,130.78,7.6483]
[1744540808191,79.49675367,130.82,130.79,7.6478]
[1744540808793,0.04347481,130.82,130.79,0.05416001]
[1744540809994,7.647,130.81,130.79,0.05416001]
[1744540811097,0.04347481,130.82,130.79,0.05416001]
[1744540812098,0.04347481,130.82,130.8,7.6469]
[1744540816604,0.04347481,130.82,130.81,7.6468]
[1744540817103,0.04347481,130.82,130.79,28.67416001]
[1744540817502,0.04347481,130.82,130.8,7.647]
[1744540819003,0.04347481,130.82,130.79,28.67416001]
[1744540819308,0.04347481,130.82,130.79,0.05416001]
[1744540819703,0.04347481,130.82,130.81,7.6468]
[1744540830317,0.04347481,130.82,130.79,28.65416001]
[1744540830318,0.04347481,130.82,130.79,0.05416001]
[1744540830620,7.647,130.81,130.79,0.05416001]
[1744540830912,0.04347481,130.82,130.79,0.05416001]
[1744540831615,7.6472,130.81,130.79,0.05416001]
[1744540832921,0.04347481,130.82,130.79,0.05416001]
[1744540833115,0.04347481,130.82,130.79,28.65416001]
[1744540834421,0.04347481,130.82,130.81,7.6468]
[1744540835121,0.04347481,130.82,130.8,7.647]
[1744540835421,0.04347481,130.82,130.79,28.65416001]
[1744540835920,0.04347481,130.82,130.8,7.647]
[1744540836121,0.04347481,130.82,130.79,28.65416001]
[1744540836515,0.04347481,130.82,130.8,7.6474]
[1744540837224,7.68977481,130.82,130.8,7.6474]
[1744540841524,0.04347481,130.82,130.8,7.6474]
[1744540842025,0.04347481,130.82,130.81,7.6468]
[1744540853333,0.04347481,130.82,130.8,7.6471]
[1744540854135,0.04347481,130.82,130.81,7.6468]
[1744540857338,7.68967481,130.82,130.8,7.6471]
[1744540858540,0.04347481,130.82,130.8,7.6471]
[1744540861045,0.04347481,130.82,130.81,7.6468]
[1744540861244,0.04347481,130.82,130.81,10.7277779]
[1744540863547,0.04347481,130.82,130.79,0.05416001]
[1744540863837,7.6481,130.79,130.74,28.58]
[1744540864045,4.0137,130.81,130.75,10.73107634]
[1744540864338,4.0137,130.81,130.74,28.58]
[1744540864339,28.58,130.8,130.74,28.58]
[1744540864746,28.58,130.8,130.74,36.2306]
[1744540865044,0.05405228,130.78,130.76,0.05735838]
[1744540865343,7.70285228,130.78,130.76,0.05735838]
[1744540868047,7.6491,130.77,130.76,0.05735838]
[1744540869245,7.6515,130.73,130.68,1.33114027]
[1744540869450,2.018,130.76,130.67,28.58]
[1744540869648,2.018,130.76,130.68,3.07156766]
[1744540869947,7.6512,130.74,130.7,7.6528]
[1744540870149,1.9622,130.75,130.7,7.6528]
[1744540870345,0.05141744,130.74,130.71,0.05738725]
[1744540871249,7.6515,130.73,130.71,0.05738725]
[1744540873355,0.05141744,130.74,130.71,0.05738725]
[1744540873356,7.652,130.72,130.71,0.05738725]
[1744540873651,28.63141744,130.74,130.67,28.58]
[1744540873853,28.58,130.74,130.67,28.58]
[1744540874053,7.6534,130.7,130.66,7.6554]
[1744540874248,7.6534,130.7,130.65,28.58]
[1744540874550,0.05391695,130.69,130.66,0.05882569]
[1744540875253,0.05391695,130.69,130.67,7.655]
[1744540885666,0.05391695,130.69,130.66,0.05882569]
[1744540886363,7.6547,130.68,130.66,0.05882569]
[1744540887766,7.6547,130.68,130.66,7.71432569]
[1744540888662,0.05391695,130.69,130.67,7.6544]
[1744540888960,0.05391695,130.69,130.68,28.58]
[1744540889157,1.9622,130.75,130.68,28.58]
[1744540889363,7.6511,130.74,130.71,7.6523]
[1744540889767,1.9622,130.75,130.68,28.58]
[1744540889966,634.42,130.77,130.68,28.58]
[1744540890269,0.05548041,130.73,130.72,7.652]
[1744540903171,0.05548041,130.73,130.71,36.28945595]
[1744540903470,0.05548041,130.73,130.71,28.63695595]
[1744540903772,0.05548041,130.73,130.72,7.652]
[1744540910079,36.2292,130.77,130.75,7.6502]
[1744540910780,36.2292,130.77,130.74,7.6506]
[1744540911280,36.27772332,130.77,130.74,7.7045636]
[1744540911878,0.04852332,130.77,130.74,0.0539636]
[1744540912684,0.04852332,130.77,130.76,7.6497]
[1744540922586,0.04852332,130.77,130.74,36.2642636]
[1744540923285,0.04852332,130.77,130.75,7.6502]
[1744540923892,0.04852332,130.77,130.74,36.2647636]
[1744540924089,0.04852332,130.77,130.74,7.7047636]
[1744540924493,7.69792332,130.77,130.74,7.7047636]
[1744540926294,7.6498,130.76,130.74,0.0539636]
[1744540926590,0.04852332,130.77,130.74,0.0539636]
[1744540926787,7.6503,130.75,130.74,0.0539636]
[1744540927291,7.6529,130.71,130.68,28.56]
[1744540927796,30.6458,130.74,130.65,28.56]
[1744540928296,0.05201611,130.71,130.68,0.05133516]
[1744540928593,28.56,130.7,130.64,7.6564]
[1744540928795,2.0004,130.69,130.64,7.6564]
[1744540928990,7.6547,130.68,130.64,7.6564]
[1744540929393,7.6547,130.68,130.65,7.6561]
[1744540929595,0.04965503,130.67,130.65,7.71271989]
[1744540931398,7.70465503,130.67,130.65,0.05661989]
[1744540932902,7.6555,130.66,130.65,0.05661989]
[1744540934501,7.70495503,130.67,130.65,0.05661989]
[1744540936200,7.6555,130.66,130.65,0.05661989]
[1744540937496,7.6564,130.65,130.62,36.2176]
[1744540938303,7.6564,130.65,130.63,7.6571]
[1744540938499,7.6558,130.66,130.63,7.6571]
[1744540938699,7.6558,130.66,130.63,7.70611828]
[1744540939005,30.57595503,130.67,130.63,7.70611828]
[1744540939204,7.6557,130.66,130.63,7.70611828]
[1744540939503,30.57595503,130.67,130.63,7.70611828]
[1744540939702,7.6557,130.66,130.63,7.70611828]
[1744540940205,7.6562,130.65,130.63,7.70611828]
[1744540941603,7.6567,130.64,130.63,0.04901828]
[1744540941803,28.56,130.64,130.56,28.56]
[1744540942001,1.9455,130.63,130.56,28.56]
[1744540942201,7.6588,130.61,130.58,7.6602]
[1744540942806,7.6588,130.61,130.58,7.7113538]
[1744540943108,7.71165275,130.61,130.58,7.7113538]
[1744540944209,0.05285275,130.61,130.6,7.6591]
[1744540944405,0.05285275,130.61,130.58,0.0511538]
[1744540944709,0.05285275,130.61,130.59,7.6596]
[1744540945008,0.05285275,130.61,130.58,0.0511538]
[1744540945607,0.05285275,130.61,130.6,7.6591]
[1744540946811,2.1363,130.68,130.65,7.6558]
[1744540947312,9.791,130.68,130.65,7.6558]
[1744540947516,9.791,130.68,130.63,7.6567]
[1744540948011,0.05238706,130.67,130.64,0.05190535]
[1744540949603,7.70748706,130.67,130.64,7.70860535]
[1744540950111,0.05238706,130.67,130.64,7.70860535]
[1744540950514,7.70788706,130.67,130.64,0.05190535]
[1744540950714,0.05238706,130.67,130.64,0.05190535]
[1744540951208,7.6561,130.65,130.64,0.05190535]
[1744540952611,28.56,130.66,130.64,0.05190535]
[1744540953311,7.6561,130.65,130.64,0.05190535]
[1744540954114,0.05238706,130.67,130.64,0.05190535]
[1744540954718,0.05238706,130.67,130.65,7.6561]
[1744540954916,0.05238706,130.67,130.64,0.05190535]
[1744540955718,0.05238706,130.67,130.66,7.6555]
[1744540956922,0.05238706,130.67,130.65,7.6559]
[1744540958319,0.05238706,130.67,130.66,7.6555]
[1744540964629,0.05238706,130.67,130.64,7.70860535]
[1744540965021,0.05238706,130.67,130.64,0.05190535]
[1744540965330,7.6558,130.66,130.64,0.05190535]
[1744540967034,7.6561,130.65,130.64,0.05190535]
[1744540967534,7.6558,130.66,130.64,0.05190535]
[1744540971137,0.05238706,130.67,130.64,0.05190535]
[1744540971737,0.05238706,130.67,130.66,7.6555]
[1744540980149,4.1217,130.73,130.69,7.6534]
[1744540980350,4.1217,130.73,130.65,28.54]
[1744540980650,7.6529,130.71,130.68,7.6538]
[1744540980846,7.6529,130.71,130.65,28.54]
[1744540981039,11.7734,130.73,130.66,3.07460174]
[1744540981244,9.6889,130.73,130.7,7.6529]
[1744540981449,0.05461522,130.71,130.7,7.6529]
[1744540981849,0.05461522,130.71,130.69,7.6535]
[1744540983445,0.05461522,130.71,130.68,0.05774919]
[1744540984050,7.6538,130.69,130.68,0.05774919]
[1744540994263,7.6559,130.66,130.55,45.9716]
[1744540994559,30.5211,130.68,130.62,7.6574]
[1744540994756,7.6568,130.64,130.62,7.6574]
[1744540994950,7.6568,130.64,130.59,28.54]
[1744540994951,30.5211,130.68,130.6,7.6587]
[1744540995152,30.5211,130.68,130.61,3.08005598]
[1744540995351,7.6576,130.63,130.6,7.6587]
[1744540995551,7.6576,130.63,130.61,3.07986777]
[1744540995761,7.6576,130.63,130.6,7.71425726]
[1744540996061,0.055403,130.65,130.61,3.07986905]
[1744540996368,0.055403,130.65,130.62,3.0796448]
[1744540996656,0.055403,130.65,130.63,7.6572]
[1744540996857,0.055403,130.65,130.59,28.54]
[1744540997050,0.055403,130.65,130.63,0.05139662]
[1744540998059,7.6568,130.64,130.63,0.05139662]
[1744541000664,7.711703,130.65,130.63,0.05139662]
[1744541000962,0.055403,130.65,130.63,0.05139662]
[1744541001364,7.6567,130.64,130.63,0.05139662]
[1744541005370,36.251803,130.65,130.63,0.05139662]
[1744541007171,7.6567,130.64,130.63,0.05139662]
[1744541009874,7.6585,130.61,130.59,28.54]
[1744541010171,7.6585,130.61,130.56,30.5375]
[1744541010372,7.6585,130.61,130.58,7.6599]
[1744541010980,7.71322088,130.61,130.58,7.70848259]
[1744541019383,0.05472088,130.61,130.58,0.04858259]
[1744541019588,0.05472088,130.61,130.5,3.9655]
[1744541019887,7.662,130.56,130.51,3.06977225]
[1744541020089,28.54,130.57,130.5,3.9655]
[1744541020288,28.54,130.58,130.51,3.06979847]
[1744541020488,7.6622,130.55,130.52,7.6635]
[1744541020688,0.05467496,130.56,130.53,0.05540265]
[1744541021189,0.05467496,130.56,130.55,7.662]
[1744541021788,0.05467496,130.56,130.54,7.6623]
[1744541022686,0.05467496,130.56,130.55,7.662]
[1744541031694,0.05467496,130.56,130.55,36.202]
[1744541032696,7.6585,130.61,130.58,7.6598]
[1744541033896,7.71734712,130.61,130.58,7.70845657]
[1744541035096,7.71734712,130.61,130.59,7.6596]
[1744541035299,0.05884712,130.61,130.58,0.04865657]
[1744541035799,0.05884712,130.61,130.6,7.6591]
[1744541036898,0.05884712,130.61,130.58,0.04865657]
[1744541038303,7.71754712,130.61,130.59,7.6595]
[1744541040490,7.6594,130.6,130.58,0.04865657]
[1744541041107,7.6594,130.6,130.58,7.70875657]
[1744541041802,7.6594,130.6,130.58,0.04865657]
[1744541044096,7.6594,130.6,130.58,7.70885657]
[1744541044695,7.71764712,130.61,130.58,7.70885657]
[1744541045907,7.71764712,130.61,130.59,7.6596]
[1744541046100,0.05884712,130.61,130.58,0.04865657]
[1744541046500,0.05884712,130.61,130.58,28.56865657]
[1744541046705,0.05884712,130.61,130.6,7.6591]
[1744541048608,0.05884712,130.61,130.59,7.6594]
[1744541050309,7.71734712,130.61,130.59,7.6594]
[1744541052612,0.05884712,130.61,130.59,7.6594]
[1744541053712,7.71764712,130.61,130.58,36.22865657]
[1744541053913,7.71764712,130.61,130.58,7.70865657]
[1744541055514,7.6591,130.6,130.58,7.70865657]
[1744541055714,7.6591,130.6,130.58,0.04865657]
[1744541055916,28.57884712,130.61,130.58,0.04865657]
[1744541057015,7.6596,130.59,130.58,0.04865657]
[1744541058209,7.6593,130.6,130.58,0.04865657]
[1744541060218,36.23764712,130.61,130.58,7.70885657]
[1744541060717,28.57884712,130.61,130.58,0.04865657]
[1744541061017,7.6591,130.6,130.58,0.04865657]
[1744541061213,28.57884712,130.61,130.58,0.04865657]
[1744541061417,3.9838,130.6,130.58,0.04865657]
[1744541061619,3.9838,130.6,130.52,28.52]
[1744541061918,2.0957,130.59,130.49,28.52]
[1744541062119,28.52,130.58,130.5,3.08176076]
[1744541062418,7.6627,130.54,130.52,7.6637]
[1744541062619,7.6627,130.54,130.51,3.08176076]
[1744541062620,7.6627,130.54,130.49,28.52]
[1744541062815,7.71666871,130.54,130.52,0.05121412]
[1744541063417,7.6632,130.53,130.52,0.05121412]
[1744541064220,0.05396871,130.54,130.46,28.52]
[1744541064416,4.1121,130.52,130.47,3.07923735]
[1744541064619,28.52,130.51,130.46,7.6671]
[1744541064818,28.52,130.51,130.47,3.0793419]
[1744541065016,28.52,130.51,130.43,28.52]
[1744541065216,7.6664,130.48,130.44,10.74764355]
[1744541065417,28.52,130.51,130.46,0.05497373]
[1744541065618,0.05697033,130.47,130.46,0.05497373]
[1744541065919,0.050663,130.48,130.46,0.05497373]
[1744541066622,0.050663,130.48,130.47,7.6667]
[1744541076529,7.6633,130.53,130.5,7.6646]
[1744541076726,2.1259,130.56,130.49,28.52]
[1744541077037,7.6621,130.55,130.52,7.6634]
[1744541077335,2.1259,130.56,130.49,28.52]
[1744541077532,0.05707688,130.54,130.51,7.72054314]
[1744541078136,7.71977688,130.54,130.51,7.72054314]
[1744541081330,0.05707688,130.54,130.51,0.05654314]
[1744541081933,0.05707688,130.54,130.53,7.6632]
[1744541084238,0.05707688,130.54,130.52,7.6636]
[1744541084438,7.71997688,130.54,130.51,0.05654314]
[1744541084839,7.71997688,130.54,130.51,7.72064314]
[1744541086142,7.71997688,130.54,130.52,7.6637]
[1744541086339,0.05707688,130.54,130.52,7.6637]
[1744541086536,0.05707688,130.54,130.53,7.6632]
[1744541088144,7.71967688,130.54,130.51,7.72054314]
[1744541091851,0.05707688,130.54,130.52,7.6637]
[1744541092052,0.05707688,130.54,130.51,0.05654314]
[1744541092753,0.05707688,130.54,130.52,7.6632]
[1744541093358,0.05707688,130.54,130.53,7.6632]
[1744541094751,28.52,130.59,130.55,7.6616]
[1744541094958,28.52,130.59,130.52,28.52]
[1744541095357,7.6611,130.57,130.54,7.6623]
[1744541096060,7.71969272,130.57,130.54,7.71817964]
[1744541097457,7.662,130.55,130.54,0.05587964]
[1744541100363,7.6639,130.52,130.47,358.0]
[1744541100663,7.6639,130.52,130.48,3.07435252]
[1744541100854,7.6639,130.52,130.49,7.6651]
[1744541101057,32.4271,130.56,130.5,3.07456601]
[1744541101256,32.4271,130.56,130.47,28.5]
[1744541101461,0.05737633,130.53,130.52,7.6633]
[1744541102061,0.05737633,130.53,130.51,0.05160737]
[1744541103063,28.55737633,130.53,130.51,0.05160737]
[1744541103363,28.55737633,130.53,130.47,7.6663]
[1744541103662,7.6652,130.5,130.47,7.6663]
[1744541104364,7.71778722,130.5,130.47,7.72140424]
[1744541104663,0.05258722,130.5,130.48,3.07746689]
[1744541104860,0.05258722,130.5,130.49,3.07746678]
[1744541105064,3.9271,130.56,130.49,31.57746678]
[1744541105258,28.5,130.57,130.5,3.07746678]
[1744541105666,7.6623,130.55,130.53,7.6632]
[1744541106164,7.71189864,130.55,130.53,7.71785154]
[1744541106364,0.04959864,130.55,130.53,7.71785154]
[1744541107764,0.04959864,130.55,130.54,7.6626]
[1744541108366,0.04959864,130.55,130.53,7.71755154]
[1744541109367,0.04959864,130.55,130.54,7.6626]
[1744541110266,0.04959864,130.55,130.53,7.71755154]
[1744541111969,0.04959864,130.55,130.54,7.6626]
[1744541113169,2.0784,130.6,130.53,0.05465154]
[1744541113370,2.0784,130.6,130.54,3.08015713]
[1744541113571,28.5,130.61,130.55,28.5]
[1744541113767,36.1586,130.61,130.58,7.6599]
[1744541114266,0.05545979,130.61,130.59,7.6596]
[1744541114464,0.05545979,130.61,130.58,0.04989493]
[1744541114866,0.05545979,130.61,130.6,7.6591]
[1744541115369,0.05545979,130.61,130.59,7.6595]
[1744541115867,0.05545979,130.61,130.58,28.54989493]
[1744541116073,0.05545979,130.61,130.6,7.6591]
[1744541116871,0.05545979,130.61,130.6,10.7331606]
[1744541117073,0.05545979,130.61,130.6,7.6591]
[1744541117271,71.85025367,130.65,130.62,7.6575]
[1744541118269,71.85025367,130.65,130.63,7.6572]
[1744541118571,71.90643587,130.65,130.63,7.6572]
[1744541118966,0.0561822,130.65,130.63,7.6572]
[1744541120073,7.7123822,130.65,130.62,0.04854887]
[1744541120475,0.0561822,130.65,130.62,0.04854887]
[1744541120675,7.6573,130.63,130.62,0.04854887]
[1744541121171,0.0561822,130.65,130.62,0.04854887]
[1744541121677,0.0561822,130.65,130.62,7.70614887]
[1744541122679,0.0561822,130.65,130.63,7.6572]
[1744541122976,0.0561822,130.65,130.62,0.04854887]
[1744541123176,7.7124822,130.65,130.62,0.04854887]
[1744541123475,7.7124822,130.65,130.62,7.70614887]
[1744541124172,0.0561822,130.65,130.62,7.70614887]
[1744541124978,7.7124822,130.65,130.62,7.70614887]
[1744541125780,0.0561822,130.65,130.62,0.04854887]
[1744541126378,7.6573,130.63,130.62,0.04854887]
[1744541127382,7.6598,130.59,130.56,7.6611]
[1744541127882,7.6598,130.59,130.55,36.1417]
[1744541128383,7.6604,130.58,130.55,36.1417]
[1744541128684,0.05571625,130.58,130.56,0.05828224]
[1744541130383,0.05571625,130.58,130.56,7.71958224]
[1744541130885,0.05571625,130.58,130.57,7.6608]
[1744541138284,28.48,130.64,130.61,7.6584]
[1744541138489,7.6565,130.65,130.58,28.48]
[1744541138893,28.48,130.66,130.58,28.48]
[1744541139392,0.05520431,130.63,130.62,7.6575]
[1744541146907,0.05520431,130.63,130.61,28.53718624]
[1744541147106,0.05520431,130.63,130.61,0.05718624]
[1744541147404,7.6579,130.62,130.61,0.05718624]
[1744541147707,0.05520431,130.63,130.61,0.05718624]
[1744541148009,7.71280431,130.63,130.61,0.05718624]
[1744541148608,7.6579,130.62,130.61,0.05718624]
[1744541148907,28.51520431,130.63,130.58,28.46]
[1744541149407,7.6589,130.61,130.58,28.46]
[1744541150008,7.6589,130.61,130.58,28.5085502]
[1744541150810,7.6589,130.61,130.58,7.7087502]
[1744541151111,7.6582,130.62,130.58,0.0485502]
[1744541151305,28.51520431,130.63,130.6,7.6589]
[1744541152113,36.17280431,130.63,130.6,7.6589]